fUST/lending_fUST_20250321
["ID","MTS","AMOUNT","RATE_DAILY","PERIOD"]
[356487125,1742521841815,-500.0,0.00032876,21]
[356487126,1742521841824,-500.0,0.00032876,21]
[356487127,1742521841833,-1215.75,0.00032876,21]
[356487128,1742521841843,-642.43,0.00032876,21]
[356487129,1742521841852,-604.6,0.00032876,21]
[356487130,1742521841862,-600.5,0.00032876,21]
[356487131,1742521841871,-1067.68,0.00032876,21]
[356487132,1742521841880,-500.0,0.00032876,21]
[356487133,1742521841890,-316.8720519,0.00032876,21]
[356487134,1742521841899,-500.0,0.00032876,21]
[356487135,1742521841908,-151.0,0.00032876,7]
[356487136,1742521841918,-151.0,0.00032876,7]
[356487137,1742521841928,-151.0,0.00032876,7]
[356487138,1742521841938,-263.333868,0.00032876,7]
[356487139,1742521841947,-697.31,0.00032876,21]
[356487140,1742521841956,-500.0,0.00032876,21]
[356487141,1742521841966,-518.88,0.00032876,21]
[356487142,1742521841976,-500.0,0.00032876,21]
[356487143,1742521841986,-699.19,0.00032876,21]
[356487144,1742521841995,-500.0,0.00032876,21]
[356487145,1742521842005,-500.0,0.00032876,21]
[356487146,1742521842015,-500.0,0.00032876,21]
[356487147,1742521842024,-885.43,0.00032876,21]
[356487148,1742521842034,-500.0,0.00032876,21]
[356487149,1742521842043,-500.0,0.00032876,21]
[356487150,1742521842053,-1178.12,0.00032876,21]
[356487151,1742521842062,-1022.87,0.00032876,21]
[356487152,1742521842072,-500.0,0.00032876,21]
[356487153,1742521842081,-500.0,0.00032876,21]
[356487154,1742521842091,-500.0,0.00032876,21]
[356487155,1742521842100,-640.73,0.00032876,21]
[356487156,1742521842109,-761.1,0.00032876,120]
[356487157,1742521842119,-681.73,0.00032876,21]
[356487158,1742521842128,-500.0,0.00032876,21]
[356487159,1742521842138,-1714.36,0.00032876,21]
[356487160,1742521842148,-500.0,0.00032876,21]
[356487161,1742521842157,-1710.58,0.00032876,21]
[356487162,1742521842167,-657.93,0.00032876,21]
[356487163,1742521842177,-500.0,0.00032876,21]
[356487164,1742521842187,-725.59,0.00032876,21]
[356487165,1742521842196,-716.89,0.00032876,2]
[356487166,1742521842206,-877.27,0.00032876,21]
[356487167,1742521842215,-1097.23,0.00032876,21]
[356487168,1742521842225,-1795.3,0.00032876,21]
[356487169,1742521842234,-500.0,0.00032876,21]
[356487170,1742521842243,-500.0,0.00032876,21]
[356487171,1742521842253,-522.68,0.00032876,21]
[356487172,1742521842263,-500.0,0.00032876,21]
[356487173,1742521842272,-500.0,0.00032876,21]
[356487174,1742521842282,-497.06532945,0.00032876,7]
[356487175,1742521842291,-151.0,0.00032876,7]
[356487176,1742521842301,-151.0,0.00032876,7]
[356487177,1742521842310,-151.0,0.00032876,7]
[356487178,1742521842319,-151.0,0.00032876,7]
[356487179,1742521842329,-542.15,0.00032876,21]
[356487180,1742521842338,-151.0,0.00032876,7]
[356487181,1742521842350,-192.012956,0.00032876,7]
[356487182,1742521842360,-151.0,0.00032876,7]
[356487183,1742521842370,-500.0,0.00032876,21]
[356487184,1742521842379,-151.0,0.00032876,7]
[356487185,1742521842390,-151.0,0.00032876,7]
[356487186,1742521842400,-151.0,0.00032876,7]
[356487187,1742521842409,-151.0,0.00032876,7]
[356487188,1742521842418,-151.0,0.00032876,7]
[356487189,1742521842429,-151.0,0.00032876,7]
[356487190,1742521842439,-151.0,0.00032876,7]
[356487191,1742521842448,-151.0,0.00032876,7]
[356487192,1742521842458,-1369.47,0.00032876,21]
[356487193,1742521842467,-151.0,0.00032876,7]
[356487194,1742521842476,-272.670746,0.00032876,7]
[356487195,1742521842485,-500.0,0.00032876,21]
[356487196,1742521842494,-500.0,0.00032876,21]
[356487197,1742521842503,-500.0,0.00032876,21]
[356487198,1742521842513,-500.0,0.00032876,21]
[356487199,1742521842522,-500.0,0.00032876,21]
[356487200,1742521842531,-500.0,0.00032876,21]
[356487201,1742521842541,-500.0,0.00032876,21]
[356487202,1742521842551,-500.0,0.00032876,21]
[356487203,1742521842560,-1185.61,0.00032876,21]
[356487204,1742521842569,-500.0,0.00032876,21]
[356487205,1742521842578,-538.02,0.00032876,21]
[356487206,1742521842587,-1457.14,0.00032876,21]
[356487207,1742521842596,-500.0,0.00032876,21]
[356487208,1742521842606,-500.0,0.00032876,21]
[356487209,1742521842615,-626.72,0.00032876,21]
[356487210,1742521842624,-500.0,0.00032876,21]
[356487211,1742521842634,-1532.92,0.00032876,21]
[356487212,1742521842644,-1105.14,0.00032876,21]
[356487213,1742521842654,-789.1,0.00032876,21]
[356487214,1742521842663,-500.0,0.00032876,21]
[356487215,1742521842672,-684.73,0.00032876,21]
[356487216,1742521842682,-150.14,0.00032876,7]
[356487217,1742521842692,-530.71,0.00032876,21]
[356487218,1742521842701,-500.0,0.00032876,21]
[356487219,1742521842710,-1096.82,0.00032876,21]
[356487220,1742521842719,-500.0,0.00032876,21]
[356487221,1742521842729,-711.34,0.00032876,21]
[356487222,1742521842737,-500.0,0.00032876,21]
[356487223,1742521842746,-500.0,0.00032876,21]
[356487224,1742521842756,-180.01007232,0.00032876,20]
[356487225,1742521842765,-500.0,0.00032876,21]
[356487226,1742521842775,-1695.53,0.00032876,21]
[356487227,1742521842784,-500.0,0.00032876,21]
[356487228,1742521842793,-896.45,0.00032876,21]
[356487229,1742521842803,-1197.33,0.00032876,21]
[356487230,1742521842812,-165.05351797,0.00032876,21]
[356487231,1742521842821,-1023.33,0.00032876,21]
[356487232,1742521842830,-500.0,0.00032876,21]
[356487234,1742521842840,-500.0,0.00032876,21]
[356487235,1742521842849,-500.0,0.00032876,21]
[356487237,1742521842858,-500.0,0.00032876,21]
[356487239,1742521842867,-1403.59,0.00032876,21]
[356487240,1742521842876,-500.0,0.00032876,21]
[356487241,1742521842885,-546.92,0.00032876,21]
[356487242,1742521842895,-1080.09,0.00032876,21]
[356487262,1742521843067,-500.0,0.00032876,21]
[356487264,1742521843076,-500.0,0.00032876,21]
[356487266,1742521843086,-500.0,0.00032876,21]
[356487268,1742521843095,-500.0,0.00032876,21]
[356487269,1742521843105,-1410.09,0.00032876,21]
[356487270,1742521843114,-1722.42,0.00032876,21]
[356487271,1742521843123,-500.0,0.00032876,21]
[356487272,1742521843132,-1033.64,0.00032876,21]
[356487273,1742521843142,-719.03,0.00032876,21]
[356487274,1742521843152,-776.45,0.00032876,21]
[356487275,1742521843161,-500.0,0.00032876,21]
[356487276,1742521843170,-783.43,0.00032876,21]
[356487277,1742521843180,-703.23,0.00032876,21]
[356487278,1742521843191,-865.75,0.00032876,21]
[356487279,1742521843200,-500.0,0.00032876,21]
[356487280,1742521843209,-500.0,0.00032876,21]
[356487281,1742521843219,-701.78,0.00032876,21]
[356487282,1742521843228,-500.0,0.00032876,21]
[356487283,1742521843237,-1137.88,0.00032876,21]
[356487284,1742521843247,-500.0,0.00032876,21]
[356487285,1742521843256,-569.95,0.00032876,21]
[356487286,1742521843266,-500.0,0.00032876,21]
[356487287,1742521843275,-500.0,0.00032876,21]
[356487288,1742521843285,-500.0,0.00032876,21]
[356487289,1742521843294,-1259.73,0.00032876,21]
[356487290,1742521843303,-707.25,0.00032876,21]
[356487291,1742521843312,-1583.94,0.00032876,21]
[356487292,1742521843322,-507.38446025,0.00032876,21]
[356487293,1742521843331,-500.0,0.00032876,2]
[356487294,1742521843341,-510.19,0.00032876,21]
[356487295,1742521843354,-640.35,0.00032876,21]
[356487296,1742521843363,-500.0,0.00032876,21]
[356487297,1742521843373,-830.56,0.00032876,21]
[356487298,1742521843383,-845.46,0.00032876,21]
[356487299,1742521843394,-1771.36,0.00032876,21]
[356487300,1742521843403,-1075.37,0.00032876,21]
[356487301,1742521843412,-500.0,0.00032876,21]
[356487302,1742521843422,-500.0,0.00032876,21]
[356487303,1742521843433,-1838.19,0.00032876,21]
[356487304,1742521843443,-500.0,0.00032876,21]
[356487305,1742521843453,-500.0,0.00032876,21]
[356487306,1742521843462,-672.18,0.00032876,21]
[356487307,1742521843472,-2047.04,0.00032876,21]
[356487308,1742521843481,-529.98,0.00032876,21]
[356487309,1742521843491,-500.0,0.00032876,21]
[356487310,1742521843500,-500.0,0.00032876,21]
[356487311,1742521843510,-705.19,0.00032876,21]
[356487312,1742521843519,-1241.1,0.00032876,21]
[356487313,1742521843529,-500.0,0.00032876,14]
[356487314,1742521843538,-2987.36,0.00032876,21]
[356487315,1742521843547,-500.0,0.00032876,21]
[356487316,1742521843556,-1370.6,0.00032876,21]
[356487317,1742521843565,-988.01,0.00032876,21]
[356487318,1742521843575,-500.0,0.00032876,21]
[356487319,1742521843584,-500.0,0.00032876,21]
[356487320,1742521843594,-500.0,0.00032876,21]
[356487321,1742521843603,-500.0,0.00032876,21]
[356487322,1742521843612,-500.0,0.00032876,21]
[356487323,1742521843621,-1291.98,0.00032876,21]
[356487324,1742521843631,-500.0,0.00032876,21]
[356487325,1742521843640,-500.0,0.00032876,21]
[356487326,1742521843650,-500.0,0.00032876,21]
[356487327,1742521843671,-3012.57,0.00032876,21]
[356487328,1742521843681,-500.0,0.00032876,21]
[356487329,1742521843691,-500.0,0.00032876,21]
[356487330,1742521843702,-183.67317186,0.00032876,21]
[356487331,1742521843713,-3313.38,0.00032876,21]
[356487332,1742521843723,-500.0,0.00032876,21]
[356487333,1742521843733,-1309.06,0.00032876,21]
[356487334,1742521843743,-512.61952144,0.00032876,21]
[356487335,1742521843754,-1000.0,0.00032876,21]
[356487336,1742521843764,-578.51,0.00032876,21]
[356487337,1742521843775,-538.25,0.00032876,21]
[356487338,1742521843786,-500.0,0.00032876,21]
[356487339,1742521843796,-500.0,0.00032876,21]
[356487340,1742521843807,-500.0,0.00032876,21]
[356487341,1742521843817,-687.56,0.00032876,21]
[356487342,1742521843827,-500.0,0.00032876,21]
[356487343,1742521843837,-218.17061057,0.00032876,21]
[356487344,1742521843847,-500.0,0.00032876,21]
[356487345,1742521843857,-1023.16,0.00032876,21]
[356487346,1742521843867,-500.0,0.00032876,21]
[356487347,1742521843877,-543.11,0.00032876,21]
[356487348,1742521843887,-1038.05,0.00032876,21]
[356487349,1742521843898,-3383.18,0.00032876,21]
[356487350,1742521843907,-500.0,0.00032876,21]
[356487351,1742521843918,-500.0,0.00032876,21]
[356487352,1742521843929,-500.0,0.00032876,21]
[356487353,1742521843939,-500.0,0.00032876,21]
[356487354,1742521843949,-510.14,0.00032876,21]
[356487355,1742521843959,-500.0,0.00032876,21]
[356487356,1742521843970,-500.0,0.00032876,120]
[356487357,1742521843980,-500.0,0.00032876,21]
[356487358,1742521843990,-500.0,0.00032876,21]
[356487359,1742521844001,-2760.49,0.00032876,21]
[356487360,1742521844011,-693.79,0.00032876,21]
[356487361,1742521844021,-500.0,0.00032876,21]
[356487362,1742521844031,-803.44,0.00032876,21]
[356487363,1742521844041,-2644.99,0.00032876,21]
[356487364,1742521844052,-1387.59,0.00032876,21]
[356487365,1742521844061,-926.78,0.00032876,21]
[356487366,1742521844071,-629.63,0.00032876,21]
[356487367,1742521844081,-500.0,0.00032876,21]
[356487368,1742521844093,-500.0,0.00032876,21]
[356487369,1742521844102,-1902.9,0.00032876,21]
[356487370,1742521844112,-268.32020187,0.00032876,21]
[356487371,1742521844123,-500.0,0.00032876,21]
[356487372,1742521844133,-500.0,0.00032876,21]
[356487373,1742521844143,-1701.61,0.00032876,21]
[356487374,1742521844152,-500.0,0.00032876,21]
[356487375,1742521844162,-1484.68,0.00032876,21]
[356487376,1742521844172,-632.63,0.00032876,21]
[356487377,1742521844183,-5101.02,0.00032876,21]
[356487378,1742521844193,-500.0,0.00032876,21]
[356487379,1742521844203,-500.0,0.00032876,21]
[356487380,1742521844213,-1577.92,0.00032876,21]
[356487381,1742521844222,-500.0,0.00032876,7]
[356487382,1742521844232,-790.99,0.00032876,21]
[356487383,1742521844242,-500.0,0.00032876,21]
[356487384,1742521844252,-657.76,0.00032876,21]
[356487385,1742521844262,-500.0,0.00032876,21]
[356487386,1742521844276,-505.36,0.00032876,21]
[356487387,1742521844286,-928.98,0.00032876,21]
[356487388,1742521844296,-2133.55,0.00032876,21]
[356487389,1742521844306,-500.0,0.00032876,21]
[356487390,1742521844317,-417.94044697,0.00032876,7]
[356487391,1742521844326,-1188.51,0.00032876,21]
[356487392,1742521844336,-500.0,0.00032876,21]
[356487393,1742521844347,-2245.99,0.00032876,21]
[356487394,1742521844359,-200.0,0.00032876,7]
[356487395,1742521844369,-1527.06,0.00032876,21]
[356487396,1742521844379,-821.31,0.00032876,21]
[356487397,1742521844391,-3648.49,0.00032876,21]
[356487398,1742521844401,-1512.72,0.00032876,21]
[356487399,1742521844410,-14160.51,0.00032876,21]
[356487400,1742521844421,-25039.53,0.00032876,21]
[356487401,1742521844432,-500.0,0.00032876,21]
[356487402,1742521844442,-500.0,0.00032876,21]
[356487403,1742521844451,-684.2,0.00032876,21]
[356487404,1742521844461,-802.17,0.00032876,21]
[356487405,1742521844471,-500.0,0.00032876,21]
[356487406,1742521844480,-2016.25,0.00032876,21]
[356487407,1742521844490,-500.0,0.00032876,21]
[356487408,1742521844500,-780.7,0.00032876,21]
[356487409,1742521844509,-570.5,0.00032876,21]
[356487410,1742521844519,-1460.14,0.00032876,21]
[356487411,1742521844529,-902.44,0.00032876,21]
[356487412,1742521844539,-649.00596985,0.00032876,21]
[356487413,1742521844548,-851.09,0.00032876,21]
[356487414,1742521844558,-5616.97,0.00032876,21]
[356487415,1742521844568,-2725.78,0.00032876,21]
[356487416,1742521844578,-500.0,0.00032876,21]
[356487417,1742521844588,-811.59,0.00032876,21]
[356487418,1742521844597,-762.13,0.00032876,21]
[356487419,1742521844607,-500.0,0.00032876,21]
[356487420,1742521844617,-500.0,0.00032876,21]
[356487421,1742521844627,-8461.51,0.00032876,21]
[356487422,1742521844636,-500.0,0.00032876,21]
[356487423,1742521844647,-500.0,0.00032876,21]
[356487424,1742521844656,-638.95,0.00032876,21]
[356487425,1742521844666,-394.03130937,0.00032876,21]
[356487426,1742521844675,-500.0,0.00032876,21]
[356487427,1742521844685,-2331.67,0.00032876,21]
[356487428,1742521844694,-1406.13,0.00032876,21]
[356487429,1742521844704,-500.0,0.00032876,21]
[356487430,1742521844715,-500.0,0.00032876,21]
[356487431,1742521844725,-795.62,0.00032876,21]
[356487432,1742521844734,-523.3812443,0.00032876,21]
[356487433,1742521844744,-16507.67,0.00032876,21]
[356487434,1742521844754,-1348.75,0.00032876,21]
[356487435,1742521844763,-500.0,0.00032876,21]
[356487436,1742521844773,-500.0,0.00032876,21]
[356487437,1742521844783,-500.0,0.00032876,21]
[356487438,1742521844792,-601.21,0.00032876,21]
[356487439,1742521844802,-500.0,0.00032876,21]
[356487440,1742521844812,-500.0,0.00032876,21]
[356487441,1742521844822,-1446.36,0.00032876,21]
[356487442,1742521844832,-500.0,0.00032876,21]
[356487443,1742521844842,-1165.46,0.00032876,21]
[356487444,1742521844851,-652.52,0.00032876,21]
[356487445,1742521844861,-1204.77,0.00032876,21]
[356487446,1742521844871,-10747.34,0.00032876,21]
[356487447,1742521844880,-768.7,0.00032876,21]
[356487448,1742521844890,-525.62,0.00032876,21]
[356487449,1742521844900,-500.0,0.00032876,21]
[356487450,1742521844910,-870.28,0.00032876,21]
[356487451,1742521844919,-500.0,0.00032876,21]
[356487452,1742521844929,-3793.17,0.00032876,21]
[356487453,1742521844939,-500.0,0.00032876,21]
[356487454,1742521844948,-690.6,0.00032876,21]
[356487455,1742521844958,-506.06392748,0.00032876,21]
[356487456,1742521844967,-121.49076,0.00032876,21]
[356487457,1742521845271,-378.50924,0.00032876,21]
[356487458,1742521845280,-8936.70037164,0.00032876,21]
[356487459,1742521845737,-1641.74071463,0.00032876,21]
[356487460,1742521845748,-21044.09891373,0.00032876,21]
[356487461,1742521845758,-500.0,0.00032876,21]
[356487462,1742521845767,-3764.92,0.00032876,21]
[356487463,1742521845776,-500.0,0.00032876,21]
[356487464,1742521845785,-2076.92,0.00032876,21]
[356487465,1742521845794,-582.93,0.00032876,21]
[356487466,1742521845804,-500.0,0.00032876,21]
[356487467,1742521845813,-3355.57,0.00032876,21]
[356487468,1742521845822,-500.0,0.00032876,21]
[356487469,1742521845833,-500.0,0.00032876,21]
[356487470,1742521845843,-976.49,0.00032876,21]
[356487471,1742521845852,-960.13,0.00032876,21]
[356487472,1742521845861,-150.12,0.00032876,7]
[356487473,1742521845870,-971.26,0.00032876,21]
[356487474,1742521845881,-34638.45,0.00032876,21]
[356487475,1742521845891,-500.0,0.00032876,21]
[356487476,1742521845904,-150.12,0.00032876,7]
[356487477,1742521845914,-500.0,0.00032876,21]
[356487478,1742521845923,-500.0,0.00032876,21]
[356487479,1742521845933,-1086.38,0.00032876,21]
[356487480,1742521845942,-634.91,0.00032876,21]
[356487481,1742521845951,-500.0,0.00032876,21]
[356487482,1742521845960,-165.60629415,0.00032876,21]
[356487483,1742521845969,-5693.02,0.00032876,21]
[356487484,1742521845979,-3556.45,0.00032876,21]
[356487485,1742521845988,-1364.99,0.00032876,21]
[356487486,1742521845998,-763.37,0.00032876,21]
[356487487,1742521846007,-777.0,0.00032876,7]
[356487488,1742521846016,-500.0,0.00032876,21]
[356487489,1742521846026,-501.48717207,0.00032876,21]
[356487490,1742521846035,-500.0,0.00032876,21]
[356487491,1742521846044,-3001.31,0.00032876,21]
[356487492,1742521846056,-500.0,0.00032876,7]
[356487493,1742521846067,-5697.12012935,0.00032876,21]
[356487601,1742521948791,166.819874,0.00010959,2]
[356487602,1742521989882,-222.50413999,0.00020548,10]
[356487669,1742523032974,-236.12695653,0.0001467,2]
[356487670,1742523032983,-200.05738776,0.00014968,2]
[356487671,1742523032993,-166.819874,0.00015068,2]
[356487672,1742523033002,-166.819874,0.00019178,2]
[356487673,1742523033012,-153.03510697,0.0002328,2]
[356487675,1742523033022,-166.819874,0.00023288,2]
[356487677,1742523033032,-300.0,0.00024195,2]
[356487679,1742523033042,-14899.3632797,0.00024196,2]
[356487681,1742523033051,-500.0,0.0002489,2]
[356487683,1742523033061,-198.711,0.000259,11]
[356487685,1742523033071,-675.88718189,0.000259,4]
[356487687,1742523033080,-391.99090284,0.00026039,2]
[356487689,1742523033090,-1286.50283102,0.00026039,2]
[356487691,1742523033099,-260.1,0.00026129,3]
[356487693,1742523033108,-780.32,0.00026129,3]
[356487695,1742523033117,-500.0,0.00026138,2]
[356487697,1742523033126,-555.42425264,0.00026138,2]
[356487699,1742523033135,-312.53896399,0.00026138,2]
[356487701,1742523033146,-500.0,0.00026138,2]
[356487703,1742523033155,-10947.23718127,0.00026138,2]
[356487806,1742523038479,-1221.08412853,0.00026138,2]
[356487808,1742523038488,-500.0,0.00026138,2]
[356487810,1742523038498,-12168.3213098,0.00026138,2]
[356487812,1742523038507,-12168.3213098,0.00026138,2]
[356487814,1742523038516,-338.80718575,0.00026138,2]
[356487816,1742523038525,-12168.3213098,0.00026138,2]
[356487818,1742523038534,-12168.3213098,0.00026138,2]
[356487820,1742523038543,-12168.3213098,0.00026138,2]
[356487822,1742523038552,-12168.3213098,0.00026138,2]
[356487824,1742523038561,-12168.3213098,0.00026138,2]
[356487826,1742523038570,-12168.3213098,0.00026138,2]
[356487828,1742523038579,-12168.3213098,0.00026138,2]
[356487830,1742523038588,-12168.3213098,0.00026138,2]
[356487832,1742523038597,-12168.3213098,0.00026138,2]
[356487834,1742523038607,-12168.3213098,0.00026138,2]
[356487836,1742523038617,-12168.3213098,0.00026138,2]
[356487838,1742523038626,-12168.3213098,0.00026138,2]
[356487840,1742523038635,-12168.3213098,0.00026138,2]
[356487842,1742523038644,-12168.3213098,0.00026138,2]
[356487844,1742523038654,-12168.3213098,0.00026138,2]
[356487846,1742523038663,-12168.3213098,0.00026138,2]
[356487848,1742523038673,-12168.3213098,0.00026138,2]
[356487849,1742523038682,-12168.3213098,0.00026138,2]
[356487850,1742523038692,-12168.3213098,0.00026138,2]
[356487851,1742523038703,-12168.3213098,0.00026138,2]
[356487852,1742523038713,-12168.3213098,0.00026138,2]
[356487853,1742523038723,-12168.3213098,0.00026138,2]
[356487854,1742523038732,-12168.3213098,0.00026138,2]
[356487855,1742523038742,-12168.3213098,0.00026138,2]
[356487856,1742523038753,-12168.3213098,0.00026138,2]
[356487857,1742523038762,-12168.3213098,0.00026138,2]
[356487858,1742523038772,-12168.3213098,0.00026138,2]
[356487859,1742523038782,-12168.3213098,0.00026138,2]
[356487860,1742523038793,-12168.3213098,0.00026138,2]
[356487861,1742523038802,-12168.3213098,0.00026138,2]
[356487862,1742523038811,-12168.3213098,0.00026138,2]
[356487863,1742523038822,-12168.3213098,0.00026138,2]
[356487864,1742523038831,-12168.3213098,0.00026138,2]
[356487865,1742523038840,-12168.3213098,0.00026138,2]
[356487866,1742523038850,-12168.3213098,0.00026138,2]
[356487867,1742523038859,-12168.3213098,0.00026138,2]
[356487868,1742523038868,-12168.3213098,0.00026138,2]
[356487869,1742523038877,-12168.3213098,0.00026138,2]
[356487870,1742523038887,-12168.3213098,0.00026138,2]
[356487872,1742523038897,-12168.3213098,0.00026138,2]
[356487874,1742523038906,-12168.3213098,0.00026138,2]
[356487875,1742523038916,-12168.3213098,0.00026138,2]
[356487876,1742523038925,-12168.3213098,0.00026138,2]
[356487877,1742523038935,-12168.3213098,0.00026138,2]
[356487878,1742523038944,-12168.3213098,0.00026138,2]
[356487879,1742523038954,-12168.3213098,0.00026138,2]
[356487880,1742523038963,-12168.3213098,0.00026138,2]
[356487881,1742523038972,-12168.3213098,0.00026138,2]
[356487882,1742523038980,-12168.3213098,0.00026138,2]
[356487883,1742523038990,-12168.3213098,0.00026138,2]
[356487884,1742523038999,-12168.3213098,0.00026138,2]
[356487885,1742523039009,-12168.3213098,0.00026138,2]
[356487886,1742523039019,-151.0,0.0002614,7]
[356487887,1742523039029,-152.351608,0.0002614,7]
[356487888,1742523039039,-1397.641084,0.00026141,7]
[356487889,1742523039049,-1397.641084,0.00026141,7]
[356487890,1742523039058,-1397.641084,0.00026141,7]
[356487891,1742523039069,-1397.641084,0.00026141,7]
[356487892,1742523039078,-1397.641084,0.00026141,7]
[356487893,1742523039088,-1397.641084,0.00026141,7]
[356487894,1742523039098,-1397.641084,0.00026141,7]
[356487895,1742523039107,-1397.641084,0.00026141,7]
[356487896,1742523039117,-1397.641084,0.00026141,7]
[356487897,1742523039126,-1397.641084,0.00026141,7]
[356487898,1742523039135,-500.0,0.00026143,2]
[356487899,1742523039144,-1397.641084,0.00026144,7]
[356487900,1742523039153,-1397.641084,0.00026144,7]
[356487901,1742523039162,-62150.3457366,0.00026146,2]
[356487902,1742523039171,-500.0,0.00026173,2]
[356487903,1742523039180,-500.0,0.00026173,2]
[356487904,1742523039190,-500.0,0.00026173,2]
[356487905,1742523039200,-500.0,0.00026173,2]
[356487906,1742523039209,-500.0,0.00026173,2]
[356487907,1742523039219,-500.0,0.00026173,2]
[356487908,1742523039228,-500.0,0.00026173,2]
[356487909,1742523039237,-500.94135898,0.00026173,2]
[356487910,1742523039246,-500.0,0.00026173,2]
[356487911,1742523039255,-500.0,0.00026173,2]
[356487912,1742523039265,-500.0,0.00026173,2]
[356487913,1742523039274,-500.0,0.00026173,2]
[356487914,1742523039283,-500.0,0.00026173,2]
[356487915,1742523039292,-500.0,0.00026173,2]
[356487916,1742523039301,-500.0,0.00026173,2]
[356487917,1742523039310,-174.18673689,0.00026173,2]
[356487918,1742523039320,-500.0,0.00026173,2]
[356487919,1742523039331,-500.0,0.00026173,2]
[356487920,1742523039341,-500.0,0.00026173,2]
[356487921,1742523039350,-500.0,0.00026173,2]
[356487922,1742523039359,-420.0,0.00026233,2]
[356487923,1742523039368,-675.88718161,0.00026245,4]
[356487924,1742523039377,-500.0,0.00026417,2]
[356487925,1742523039386,-675.88718161,0.0002659,4]
[356487926,1742523039395,-500.0,0.00026691,2]
[356487927,1742523039405,-675.88718161,0.00026934,4]
[356487928,1742523039414,-503.3756537,0.00026965,2]
[356487929,1742523039423,-675.88718161,0.00027279,4]
[356487930,1742523039432,-1286.50283095,0.00027315,2]
[356487931,1742523039442,-551.81919184,0.00027397,2]
[356487932,1742523039452,-166.819874,0.00027397,2]
[356487933,1742523039461,-520.2,0.00027499,3]
[356487934,1742523039471,-675.88718161,0.00027624,4]
[356487935,1742523039481,-750.0,0.000278,2]
[356487936,1742523039491,-4635.3452,0.00027892,2]
[356487937,1742523039501,-675.88718161,0.00027969,4]
[356487938,1742523039510,-675.88718161,0.00028314,5]
[356487939,1742523039520,-587.0,0.00028442,2]
[356487940,1742523039529,-1286.50283095,0.0002859,2]
[356487941,1742523039539,-675.88718161,0.00028659,5]
[356487942,1742523039548,-675.88718161,0.00029003,5]
[356487943,1742523039558,-675.88718161,0.00029348,5]
[356487944,1742523039569,-510.38355195,0.00029548,10]
[356487945,1742523039578,-504.47637811,0.00029548,10]
[356487946,1742523039588,-675.88718161,0.00029693,5]
[356487947,1742523039597,-684.9981022,0.0002975,120]
[356487948,1742523039607,-446.539921,0.00029775,7]
[356487949,1742523039616,-446.539921,0.00029775,7]
[356487950,1742523039626,-446.539921,0.00029775,7]
[356487951,1742523039635,-446.539921,0.00029775,7]
[356487952,1742523039645,-446.539921,0.00029775,7]
[356487953,1742523039655,-446.539921,0.00029775,7]
[356487954,1742523039665,-446.539921,0.00029775,7]
[356487955,1742523039675,-446.539921,0.00029775,7]
[356487956,1742523039684,-446.539921,0.00029775,7]
[356487957,1742523039694,-446.539921,0.00029775,7]
[356487958,1742523039704,-834.1406796,0.00029775,7]
[356487959,1742523039714,-446.539921,0.000298,7]
[356487960,1742523039723,-500.00000001,0.000298,2]
[356487961,1742523039732,-446.539921,0.000298,7]
[356487962,1742523039745,-151.0,0.000298,15]